fUSD/lending_fUSD_20250602
["ID","MTS","AMOUNT","RATE_DAILY","PERIOD"]
[363805499,1748878246774,-516.60421893,0.00019999,2]
[363805500,1748878246784,-516.60421893,0.00019999,2]
[363805501,1748878246794,-516.60421893,0.00019999,2]
[363805502,1748878246804,-516.60421893,0.00019999,2]
[363805503,1748878246814,-516.60421893,0.00019999,2]
[363805504,1748878246823,-516.60421893,0.00019999,2]
[363805505,1748878246833,-516.60421893,0.00019999,2]
[363805506,1748878246842,-516.60421893,0.00019999,2]
[363805507,1748878246852,-516.60421893,0.00019999,2]
[363805508,1748878246862,-516.60421893,0.00019999,2]
[363805509,1748878246872,-516.60421893,0.00019999,2]
[363805510,1748878246882,-895.62503149,0.00019999,2]
[363805511,1748878246891,-917.05879292,0.00019999,2]
[363805512,1748878246901,-917.05879292,0.00019999,2]
[363805513,1748878246911,-917.05879292,0.00019999,2]
[363805514,1748878246920,-917.05879292,0.00019999,2]
[363805515,1748878246931,-917.05879292,0.00019999,2]
[363805516,1748878246940,-917.05879292,0.00019999,2]
[363805517,1748878246950,-917.05879292,0.00019999,2]
[363805518,1748878246960,-917.05879292,0.00019999,2]
[363805519,1748878246970,-516.60421885,0.00019999,2]
[363805520,1748878246980,-917.05879292,0.00019999,2]
[363805521,1748878246989,-1313.06145349,0.00019999,2]
[363805522,1748878246999,-1131.0,0.0002,2]
[363805523,1748878247008,-1088262.7115519,0.0002,2]
[363805524,1748878247335,-270.065,0.00019178,2]
[363805525,1748878247354,-149.935,0.00019178,2]
[363805526,1748878247365,-278.43,0.00019315,2]
[363805527,1748878247378,-141.57,0.00019315,2]
[363805528,1748878247388,-420.0,0.00019452,2]
[363805529,1748878247398,-420.0,0.00019589,2]
[363805530,1748878247407,-420.0,0.00019726,2]
[363805531,1748878247417,-420.0,0.00019863,2]
[363805532,1748878247427,-206757.72653062,0.0002,2]
[363805533,1748878247439,-432.71959327,0.0002,2]
[363805534,1748878247811,-151.0,0.00019235,2]
[363805535,1748878247821,-354.01,0.00019521,2]
[363805536,1748878247831,-8599.57591227,0.0002,2]
[363805537,1748878247846,-941.58956382,0.0002,2]
[363805538,1748878247870,-899.63511161,0.0002,2]
[363805539,1748878247882,-2546.51321035,0.0002,2]
[363805540,1748878247893,-872.42667809,0.0002,2]
[363805541,1748878284153,709.0,0.00023,30]
[363805546,1748878339952,600.0,0.00019001,2]
[363805547,1748878385466,150.0,0.00023,30]
[363805548,1748878391289,150.0,0.00023,30]
[363805549,1748878430109,23900.0,0.00018779,2]
[363805550,1748878477595,10003.9,0.00018779,2]
[363805552,1748878516537,170.49,0.0001502,2]
[363805553,1748878550704,1526.0,0.00019,2]
[363805554,1748878564341,150.0,0.00023,30]
[363805555,1748878571111,298.41830653,0.00023,30]
[363805556,1748878597629,3267.72,0.00018776,2]
[363805557,1748878611996,500.0,0.00018782,2]
[363805558,1748878639435,680.0,0.00023,30]
[363805559,1748878642079,853.22,0.00018622,2]
[363805560,1748878651462,529.02,0.00018622,2]
[363805561,1748878687725,150.0,0.00018634,2]
[363805563,1748878713096,1186.99933833,0.000241,120]
[363805564,1748878729851,1000.0,0.0001859,2]
[363805565,1748878747235,9799.96,0.00018561,2]
[363805566,1748878749293,721.8,0.00018561,2]
[363805567,1748878799365,-176.06,0.00024801,120]
[363805568,1748878803499,1664.22636602,0.00019,2]
[363805570,1748878833983,200.0,0.00018533,2]
[363805573,1748878931720,202.0,0.00018679,2]
[363805574,1748878932677,175.98,0.00018483,2]
[363805575,1748878962918,167.98,0.00018517,2]
[363805576,1748878968898,630.24,0.00016599,2]
[363805577,1748878969128,630.24,0.00018863,2]
[363805578,1748878994480,651.0,0.00023,30]
[363805581,1748879073852,329.0,0.00018511,2]
[363805583,1748879081379,202.0,0.00018679,2]
[363805585,1748879153096,200.0,0.00018511,2]
[363805586,1748879224992,200.0,0.00023,30]
[363805587,1748879228254,184.38,0.00013699,2]
[363805589,1748879260165,560.39,0.00018498,2]
[363805590,1748879287711,150.0,0.00023,30]
[363805591,1748879298513,187.33682505,0.00023,30]
[363805592,1748879305375,624.0,0.00023,30]
[363805593,1748879326835,159.51,0.00018518,2]
[363805597,1748879335907,12073.73,0.00018697,2]
[363805599,1748879373825,1047.82,0.00018526,2]
[363805603,1748879410427,151.0,0.00019,2]
[363805604,1748879410736,1135.2040627,0.00019,2]
[363805605,1748879411488,151.0,0.00019,2]
[363805616,1748879432245,-195.9041799,0.00019067,2]
[363805617,1748879432255,-250.0,0.00019074,2]
[363805618,1748879432265,-400.0,0.00019074,2]
[363805619,1748879432274,-116.2299803,0.0001908,2]
[363805620,1748879432286,-283.7700197,0.0001908,2]
[363805621,1748879432296,-195.90417989,0.00019141,2]
[363805622,1748879432306,-562.64457655,0.00019165,2]
[363805623,1748879432318,-637.35542345,0.00019165,2]
[363805624,1748879432328,-300.0,0.00019165,2]
[363805625,1748879432339,-151.0,0.00019166,2]
[363805626,1748879432349,-151.0,0.00019166,2]
[363805627,1748879432359,-157.09028412,0.00019166,2]
[363805628,1748879432370,-737.74309243,0.00019166,2]
[363805629,1748879432386,-713.45537424,0.00019166,2]
[363805630,1748879432399,-506.65753333,0.00019166,2]
[363805631,1748879432409,-1115.157653,0.00019166,2]
[363805632,1748879432419,-60.51539133,0.00019166,2]
[363805633,1748879432435,-90.48460867,0.00019166,2]
[363805634,1748879432445,-668.65185757,0.00019166,2]
[363805635,1748879432454,-151.0,0.00019166,2]
[363805636,1748879432464,-207.4,0.00019166,2]
[363805638,1748879432474,-420.0,0.00019178,2]
[363805640,1748879432484,-420.0,0.00019178,2]
[363805642,1748879432494,-455.09970279,0.00019178,2]
[363805644,1748879432503,-420.0,0.00019178,2]
[363805646,1748879432513,-420.0,0.00019178,2]
[363805648,1748879432523,-796.33,0.00019178,2]
[363805650,1748879432533,-420.0,0.00019178,2]
[363805652,1748879432545,-601.15,0.00019178,2]
[363805654,1748879432555,-420.0,0.00019178,2]
[363805656,1748879432566,-2260.82959117,0.00019178,2]
[363805658,1748879432582,-81.47040883,0.00019178,2]
[363805660,1748879432591,-420.0,0.00019178,2]
[363805662,1748879432601,-420.0,0.00019178,2]
[363805664,1748879432611,-420.0,0.00019178,2]
[363805666,1748879432621,-593.04,0.00019178,2]
[363805668,1748879432631,-420.0,0.00019178,2]
[363805670,1748879432640,-501.46,0.00019178,2]
[363805672,1748879432650,-160.76525418,0.00019178,2]
[363805793,1748879438260,-385.89474582,0.00019178,2]
[363805794,1748879438269,-632.6,0.00019178,2]
[363805795,1748879438279,-390.93018691,0.00019178,2]
[363805796,1748879438334,-159.84981309,0.00019178,2]
[363805797,1748879438343,-420.0,0.00019178,2]
[363805798,1748879438352,-420.0,0.00019178,2]
[363805799,1748879438362,-259.02,0.00019178,2]
[363805800,1748879438371,-1932.31,0.00019178,2]
[363805801,1748879438379,-420.0,0.00019178,2]
[363805802,1748879438388,-420.0,0.00019178,2]
[363805803,1748879438397,-420.0,0.00019178,2]
[363805804,1748879438406,-420.0,0.00019178,2]
[363805805,1748879438415,-420.0,0.00019178,2]
[363805806,1748879438425,-420.0,0.00019178,2]
[363805807,1748879438434,-420.0,0.00019178,2]
[363805808,1748879438444,-1390.76,0.00019178,2]
[363805809,1748879438454,-420.0,0.00019178,2]
[363805810,1748879438463,-420.0,0.00019178,2]
[363805811,1748879438472,-417.2,0.00019178,2]
[363805812,1748879438482,-379.95,0.00019178,2]
[363805813,1748879438491,-430.27,0.00019178,2]
[363805814,1748879438501,-420.0,0.00019178,2]
[363805815,1748879438510,-420.0,0.00019178,2]
[363805816,1748879438518,-420.0,0.00019178,2]
[363805817,1748879438527,-347.71070118,0.00019178,2]
[363805818,1748879438537,-420.0,0.00019178,2]
[363805819,1748879438548,-963.85,0.00019178,2]
[363805820,1748879438557,-420.0,0.00019178,2]
[363805821,1748879438566,-420.0,0.00019178,2]
[363805822,1748879438574,-450.2,0.00019178,2]
[363805823,1748879438581,-420.0,0.00019178,2]
[363805824,1748879438589,-803.15,0.00019178,2]
[363805825,1748879438597,-420.0,0.00019178,2]
[363805826,1748879438606,-420.0,0.00019178,2]
[363805827,1748879438614,-421.15517202,0.00019178,2]
[363805829,1748879438622,-353.0570532,0.00019178,2]
[363805831,1748879438630,-163.23832958,0.00019178,2]
[363805833,1748879438639,-1234.77,0.00019178,2]
[363805835,1748879438647,-714.11,0.00019178,2]
[363805837,1748879438656,-420.0,0.00019178,2]
[363805839,1748879438665,-420.0,0.00019178,2]
[363805841,1748879438674,-420.0,0.00019178,2]
[363805843,1748879438685,-497.43,0.00019178,2]
[363805845,1748879438695,-420.0,0.00019178,2]
[363805847,1748879438704,-424.33942551,0.00019178,2]
[363805849,1748879438714,-420.0,0.00019178,2]
[363805851,1748879438723,-420.0,0.00019178,2]
[363805852,1748879438733,-420.0,0.00019178,2]
[363805854,1748879438742,-529.24,0.00019178,2]
[363805856,1748879438752,-420.0,0.00019178,2]
[363805858,1748879438762,-420.0,0.00019178,2]
[363805860,1748879438772,-420.0,0.00019178,2]
[363805862,1748879438782,-420.0,0.00019178,2]
[363805864,1748879438792,-993.96,0.00019178,2]
[363805866,1748879438803,-783.21,0.00019178,2]
[363805868,1748879438813,-420.0,0.00019178,2]
[363805870,1748879438823,-420.0,0.00019178,2]
[363805872,1748879438833,-168.3888056,0.00019178,2]
[363805874,1748879438843,-151.0,0.00019205,2]
[363805876,1748879438852,-195.90417989,0.00019215,2]
[363805878,1748879438862,-2030.296672,0.00019221,2]
[363805880,1748879438872,-162.05084622,0.00019221,2]
[363805882,1748879438882,-2105.41764886,0.00019276,2]
[363805884,1748879438891,-500.0,0.00019314,2]
[363805886,1748879438900,-500.0,0.00019314,2]
[363805888,1748879438911,-420.0,0.00019315,2]
[363805890,1748879438924,-796.33,0.00019315,2]
[363805892,1748879438934,-420.0,0.00019315,2]
[363805894,1748879438944,-601.15,0.00019315,2]
[363805896,1748879438953,-420.0,0.00019315,2]
[363805898,1748879438964,-2342.3,0.00019315,2]
[363805900,1748879438973,-192.58643173,0.00019315,2]
[363805902,1748879438983,-420.0,0.00019315,2]
[363805904,1748879438993,-556.9,0.00019315,2]
[363805906,1748879439004,-289.76616337,0.00019315,2]
[363805910,1748879439037,-303.27383663,0.00019315,2]
[363805912,1748879439048,-420.0,0.00019315,2]
[363805914,1748879439057,-501.46,0.00019315,2]
[363805916,1748879439067,-546.66,0.00019315,2]
[363805919,1748879439078,-632.6,0.00019315,2]
[363805920,1748879439087,-550.78,0.00019315,2]
[363805922,1748879439097,-420.0,0.00019315,2]
[363805924,1748879439107,-420.0,0.00019315,2]
[363805927,1748879439118,-1932.31,0.00019315,2]
[363805929,1748879439127,-420.0,0.00019315,2]
[363805931,1748879439137,-420.0,0.00019315,2]
[363805932,1748879439147,-420.0,0.00019315,2]
[363805935,1748879439156,-420.0,0.00019315,2]
[363805937,1748879439166,-420.0,0.00019315,2]
[363805939,1748879439175,-420.0,0.00019315,2]
[363805941,1748879439184,-1390.76,0.00019315,2]
[363805942,1748879439194,-420.0,0.00019315,2]
[363805944,1748879439203,-420.0,0.00019315,2]
[363805946,1748879439213,-430.27,0.00019315,2]
[363805948,1748879439222,-420.0,0.00019315,2]
[363805950,1748879439231,-420.0,0.00019315,2]
[363805952,1748879439241,-963.85,0.00019315,2]
[363805954,1748879439251,-420.0,0.00019315,2]
[363805956,1748879439260,-266.29,0.00019315,2]
[363805958,1748879439269,-450.2,0.00019315,2]
[363805960,1748879439279,-803.15,0.00019315,2]
[363805962,1748879439288,-420.0,0.00019315,2]
[363805964,1748879439299,-476.98,0.00019315,2]
[363805966,1748879439308,-1234.77,0.00019315,2]
[363805968,1748879439317,-714.11,0.00019315,2]
[363805970,1748879439327,-420.0,0.00019315,2]
[363805972,1748879439336,-420.0,0.00019315,2]
[363805974,1748879439345,-420.0,0.00019315,2]
[363805976,1748879439355,-497.43,0.00019315,2]
[363805978,1748879439364,-420.0,0.00019315,2]
[363805980,1748879439373,-420.0,0.00019315,2]
[363805982,1748879439383,-420.0,0.00019315,2]
[363805984,1748879439392,-420.0,0.00019315,2]
[363805986,1748879439402,-529.24,0.00019315,2]
[363805987,1748879439411,-420.0,0.00019315,2]
[363805989,1748879439421,-420.0,0.00019315,2]
[363805991,1748879439430,-420.0,0.00019315,2]
[363805993,1748879439440,-420.0,0.00019315,2]
[363805995,1748879439449,-993.96,0.00019315,2]
[363805997,1748879439458,-783.21,0.00019315,2]
[363805999,1748879439468,-403.38,0.00019315,2]
[363806001,1748879439478,-420.0,0.00019315,2]
[363806003,1748879439487,-2183.31810187,0.00019331,2]
[363806005,1748879439497,-830.06,0.00019339,2]
[363806007,1748879439507,-4273.28,0.00019339,2]
[363806009,1748879439518,-150.99,0.00019339,2]
[363806011,1748879439528,-299.99,0.00019339,7]
[363806013,1748879439538,-9999.99,0.00019339,2]
[363806015,1748879439548,-150.99,0.00019339,2]
[363806017,1748879439559,-999.99,0.00019339,2]
[363806019,1748879439569,-374.39218695,0.00019352,2]
[363806021,1748879439578,-168.62,0.00019365,2]
[363806023,1748879439589,-2264.10087164,0.00019386,2]
[363806025,1748879439599,-374.39218693,0.00019413,2]
[363806027,1748879439609,-2347.87260389,0.00019441,2]
[363806029,1748879439618,-420.0,0.00019452,2]
[363806031,1748879439628,-796.33,0.00019452,2]
[363806033,1748879439639,-420.0,0.00019452,2]
[363806035,1748879439649,-601.15,0.00019452,2]
[363806038,1748879439659,-420.0,0.00019452,2]
[363806039,1748879439668,-2342.3,0.00019452,2]
[363806041,1748879439679,-420.0,0.00019452,2]
[363806043,1748879439689,-593.04,0.00019452,2]
[363806045,1748879439699,-420.0,0.00019452,2]
[363806047,1748879439708,-501.46,0.00019452,2]
[363806048,1748879439718,-546.66,0.00019452,2]
[363806051,1748879439728,-632.6,0.00019452,2]
[363806053,1748879439738,-550.78,0.00019452,2]
[363806055,1748879439748,-420.0,0.00019452,2]
[363806056,1748879439758,-420.0,0.00019452,2]
[363806059,1748879439768,-1932.31,0.00019452,2]
[363806061,1748879439777,-420.0,0.00019452,2]
[363806063,1748879439787,-420.0,0.00019452,2]
[363806065,1748879439798,-420.0,0.00019452,2]
[363806067,1748879439808,-420.0,0.00019452,2]
[363806069,1748879439819,-420.0,0.00019452,2]
[363806071,1748879439828,-420.0,0.00019452,2]
[363806073,1748879439838,-1390.76,0.00019452,2]
[363806075,1748879439848,-420.0,0.00019452,2]
[363806077,1748879439857,-420.0,0.00019452,2]
[363806079,1748879439866,-430.27,0.00019452,2]
[363806081,1748879439876,-422.64,0.00019452,2]
[363806083,1748879439886,-420.0,0.00019452,2]
[363806085,1748879439896,-963.85,0.00019452,2]
[363806087,1748879439906,-420.0,0.00019452,2]
[363806089,1748879439917,-450.2,0.00019452,2]
[363806091,1748879439928,-803.15,0.00019452,2]
[363806093,1748879439938,-420.0,0.00019452,2]
[363806095,1748879439947,-1234.77,0.00019452,2]
[363806097,1748879439958,-714.11,0.00019452,2]
[363806099,1748879439967,-420.0,0.00019452,2]
[363806101,1748879439976,-420.0,0.00019452,2]
[363806103,1748879439986,-420.0,0.00019452,2]
[363806105,1748879439995,-497.43,0.00019452,2]
[363806107,1748879440005,-420.0,0.00019452,2]
[363806109,1748879440015,-420.0,0.00019452,2]
[363806111,1748879440024,-420.0,0.00019452,2]
[363806113,1748879440034,-529.24,0.00019452,2]
[363806115,1748879440044,-420.0,0.00019452,2]
[363806116,1748879440054,-420.0,0.00019452,2]
[363806118,1748879440063,-420.0,0.00019452,2]
[363806120,1748879440073,-420.0,0.00019452,2]
[363806122,1748879440083,-420.0,0.00019452,2]
[363806124,1748879440093,-993.96,0.00019452,2]
[363806126,1748879440103,-783.21,0.00019452,2]
[363806128,1748879440112,-420.0,0.00019452,2]
[363806130,1748879440123,-1173.39104851,0.00019467,2]
[363806132,1748879440134,-374.39218693,0.00019474,2]
[363806135,1748879440145,-2434.74389024,0.00019496,2]
[363806136,1748879440155,-354.01,0.000195,2]
[363806139,1748879440166,-2500.0,0.000195,2]
[363806142,1748879440177,-354.01,0.00019521,2]
[363806144,1748879440187,-707.02,0.00019521,2]
[363806145,1748879440198,-354.01,0.00019521,2]
[363806148,1748879440209,-561.2,0.00019521,2]
[363806150,1748879440220,-708.0,0.00019521,2]
[363806152,1748879440230,-707.94,0.00019521,2]
[363806153,1748879440240,-150.0,0.00019529,2]
[363806155,1748879440251,-163.09,0.00019529,2]
[363806158,1748879440262,-494.69,0.00019529,2]
[363806159,1748879440272,-150.0,0.00019529,2]
[363806161,1748879440282,-454.16,0.00019529,2]
[363806164,1748879440292,-454.16,0.00019529,2]
[363806165,1748879440307,-454.16,0.00019529,2]
[363806168,1748879440317,-374.39218693,0.00019535,2]
[363806169,1748879440329,-2524.82941417,0.00019551,2]
[363806172,1748879440339,-206.18513415,0.00019589,2]
[363806174,1748879440349,-796.33,0.00019589,2]
[363806176,1748879440359,-420.0,0.00019589,2]
[363806177,1748879440369,-601.15,0.00019589,2]
[363806180,1748879440379,-420.0,0.00019589,2]
[363806182,1748879440389,-2342.3,0.00019589,2]
[363806183,1748879440399,-420.0,0.00019589,2]
[363806185,1748879440408,-593.04,0.00019589,2]
[363806187,1748879440417,-420.0,0.00019589,2]
[363806190,1748879440428,-501.46,0.00019589,2]
[363806191,1748879440438,-546.66,0.00019589,2]
[363806193,1748879440447,-632.6,0.00019589,2]
[363806195,1748879440456,-550.78,0.00019589,2]
[363806197,1748879440466,-420.0,0.00019589,2]
[363806199,1748879440475,-420.0,0.00019589,2]
[363806201,1748879440484,-1932.31,0.00019589,2]
[363806204,1748879440495,-420.0,0.00019589,2]
[363806205,1748879440504,-420.0,0.00019589,2]
[363806207,1748879440514,-420.0,0.00019589,2]
[363806209,1748879440524,-420.0,0.00019589,2]
[363806211,1748879440534,-420.0,0.00019589,2]
[363806213,1748879440547,-420.0,0.00019589,2]
[363806216,1748879440557,-1390.76,0.00019589,2]
[363806217,1748879440567,-420.0,0.00019589,2]
[363806219,1748879440577,-420.0,0.00019589,2]
[363806221,1748879440587,-430.27,0.00019589,2]
[363806223,1748879440598,-420.0,0.00019589,2]
[363806225,1748879440608,-963.85,0.00019589,2]
[363806227,1748879440618,-420.0,0.00019589,2]
[363806229,1748879440628,-450.2,0.00019589,2]
[363806231,1748879440638,-803.15,0.00019589,2]
[363806233,1748879440648,-420.0,0.00019589,2]
[363806235,1748879440657,-1234.77,0.00019589,2]
[363806237,1748879440667,-714.11,0.00019589,2]
[363806239,1748879440677,-420.0,0.00019589,2]
[363806241,1748879440685,-420.0,0.00019589,2]
[363806243,1748879440695,-420.0,0.00019589,2]
[363806245,1748879440704,-497.43,0.00019589,2]
[363806247,1748879440714,-420.0,0.00019589,2]
[363806249,1748879440723,-558.45867906,0.00019589,2]
[363806251,1748879440733,-420.0,0.00019589,2]
[363806253,1748879440742,-529.24,0.00019589,2]
[363806255,1748879440752,-420.0,0.00019589,2]
[363806257,1748879440761,-420.0,0.00019589,2]
[363806259,1748879440772,-420.0,0.00019589,2]
[363806261,1748879440782,-420.0,0.00019589,2]
[363806263,1748879440793,-420.0,0.00019589,2]
[363806265,1748879440808,-993.96,0.00019589,2]
[363806267,1748879440818,-783.21,0.00019589,2]
[363806269,1748879440827,-420.0,0.00019589,2]
[363806271,1748879440836,-374.39218693,0.00019596,2]
[363806273,1748879440846,-354.01,0.000196,2]
[363806275,1748879440854,-354.01,0.000196,2]
[363806278,1748879440864,-354.01,0.000196,2]
[363806280,1748879440873,-186.13,0.000196,2]
[363806283,1748879440882,-354.01,0.000196,2]
[363806286,1748879440903,-354.01,0.000196,2]
[363806288,1748879440912,-354.01,0.000196,2]
[363806290,1748879440924,-354.01,0.000196,2]
[363806292,1748879440931,-150.0,0.000196,2]
[363806294,1748879440939,-150.0,0.000196,2]
[363806296,1748879440947,-354.01,0.000196,2]
[363806298,1748879440956,-354.01,0.000196,2]
[363806300,1748879440964,-2618.2481025,0.00019606,2]
[363806302,1748879440973,-374.39218693,0.00019656,2]
[363806304,1748879440980,-2715.12328229,0.00019661,2]
[363806306,1748879440989,-500.0,0.00019699,2]
[363806308,1748879440997,-354.01,0.000197,2]
[363806311,1748879441006,-708.02,0.000197,2]
[363806313,1748879441015,-4849.85,0.000197,2]
[363806315,1748879441024,-151.0,0.00019714,2]
[363806317,1748879441034,-2815.58284374,0.00019716,2]
[363806319,1748879441043,-374.39218693,0.00019717,2]
[363806321,1748879441055,-500.0,0.00019725,2]
[363806323,1748879441065,-500.0,0.00019725,2]
[363806325,1748879441074,-796.33,0.00019726,2]
[363806327,1748879441084,-420.0,0.00019726,2]
[363806329,1748879441095,-601.15,0.00019726,2]
[363806331,1748879441106,-420.0,0.00019726,2]
[363806333,1748879441115,-2342.3,0.00019726,2]
[363806335,1748879441125,-420.0,0.00019726,2]
[363806337,1748879441135,-593.04,0.00019726,2]
[363806339,1748879441145,-420.0,0.00019726,2]
[363806341,1748879441154,-501.46,0.00019726,2]
[363806343,1748879441164,-546.66,0.00019726,2]
[363806345,1748879441174,-632.6,0.00019726,2]
[363806347,1748879441184,-550.78,0.00019726,2]
[363806349,1748879441194,-420.0,0.00019726,2]
[363806351,1748879441205,-428.39,0.00019726,2]
[363806353,1748879441214,-1932.31,0.00019726,2]
[363806355,1748879441224,-420.0,0.00019726,2]
[363806357,1748879441234,-420.0,0.00019726,2]
[363806359,1748879441244,-420.0,0.00019726,2]
[363806361,1748879441254,-420.0,0.00019726,2]
[363806364,1748879441264,-420.0,0.00019726,2]
[363806366,1748879441273,-420.0,0.00019726,2]
[363806368,1748879441283,-1390.76,0.00019726,2]
[363806370,1748879441292,-420.0,0.00019726,2]
[363806372,1748879441305,-420.0,0.00019726,2]
[363806374,1748879441315,-430.27,0.00019726,2]
[363806376,1748879441325,-420.0,0.00019726,2]
[363806378,1748879441335,-963.85,0.00019726,2]
[363806380,1748879441344,-420.0,0.00019726,2]
[363806382,1748879441354,-450.2,0.00019726,2]
[363806384,1748879441363,-803.15,0.00019726,2]
[363806386,1748879441372,-420.0,0.00019726,2]
[363806388,1748879441381,-1234.77,0.00019726,2]
[363806389,1748879441390,-714.11,0.00019726,2]
[363806391,1748879441400,-420.0,0.00019726,2]
[363806394,1748879441410,-420.0,0.00019726,2]
[363806395,1748879441419,-420.0,0.00019726,2]
[363806398,1748879441430,-497.43,0.00019726,2]
[363806400,1748879441439,-420.0,0.00019726,2]
[363806401,1748879441448,-420.0,0.00019726,2]
[363806403,1748879441459,-529.24,0.00019726,2]
[363806406,1748879441471,-420.0,0.00019726,2]
[363806408,1748879441481,-420.0,0.00019726,2]
[363806410,1748879441491,-420.0,0.00019726,2]
[363806412,1748879441500,-420.0,0.00019726,2]
[363806413,1748879441510,-420.0,0.00019726,2]
[363806415,1748879441519,-993.96,0.00019726,2]
[363806417,1748879441528,-783.21,0.00019726,2]
[363806419,1748879441538,-420.0,0.00019726,2]
[363806421,1748879441549,-2919.75940895,0.00019771,2]
[363806423,1748879441560,-374.39218693,0.00019778,2]
[363806426,1748879441570,-3027.79050709,0.00019826,2]
[363806427,1748879441580,-374.39218693,0.00019839,2]
[363806429,1748879441590,-547.93,0.00019853,2]
[363806431,1748879441601,-796.33,0.00019863,2]
[363806457,1748879441847,-420.0,0.00019863,2]
[363806459,1748879441858,-601.15,0.00019863,2]
[363806461,1748879441867,-420.0,0.00019863,2]
[363806463,1748879441877,-2342.3,0.00019863,2]
[363806465,1748879441887,-420.0,0.00019863,2]
[363806467,1748879441897,-593.04,0.00019863,2]
[363806469,1748879441907,-420.0,0.00019863,2]
[363806471,1748879441918,-501.46,0.00019863,2]
[363806473,1748879441928,-546.66,0.00019863,2]
[363806475,1748879441938,-632.6,0.00019863,2]
[363806477,1748879441948,-550.78,0.00019863,2]
[363806479,1748879441958,-420.0,0.00019863,2]
[363806481,1748879441968,-1932.31,0.00019863,2]
[363806483,1748879441978,-420.0,0.00019863,2]
[363806485,1748879441987,-420.0,0.00019863,2]
[363806487,1748879442000,-420.0,0.00019863,2]
[363806489,1748879442010,-420.0,0.00019863,2]
[363806491,1748879442020,-420.0,0.00019863,2]
[363806493,1748879442030,-420.0,0.00019863,2]
[363806495,1748879442040,-1390.76,0.00019863,2]
[363806497,1748879442052,-420.0,0.00019863,2]
[363806499,1748879442061,-420.0,0.00019863,2]
[363806501,1748879442071,-430.27,0.00019863,2]
[363806503,1748879442080,-420.0,0.00019863,2]
[363806504,1748879442090,-963.85,0.00019863,2]
[363806505,1748879442103,-420.0,0.00019863,2]
[363806506,1748879442112,-450.2,0.00019863,2]
[363806507,1748879442123,-803.15,0.00019863,2]
[363806508,1748879442132,-420.0,0.00019863,2]
[363806509,1748879442142,-1234.77,0.00019863,2]
[363806510,1748879442152,-714.11,0.00019863,2]
[363806511,1748879442162,-420.0,0.00019863,2]
[363806512,1748879442171,-420.0,0.00019863,2]
[363806513,1748879442181,-420.0,0.00019863,2]
[363806514,1748879442191,-497.43,0.00019863,2]
[363806515,1748879442200,-420.0,0.00019863,2]
[363806516,1748879442210,-548.79,0.00019863,2]
[363806518,1748879442219,-529.24,0.00019863,2]
[363806520,1748879442229,-420.0,0.00019863,2]
[363806522,1748879442240,-420.0,0.00019863,2]